fUSD/lending_fUSD_20240821
["ID","MTS","AMOUNT","RATE_DAILY","PERIOD"]
[335474119,1724254944765,-500.0,0.0001452,2]
[335474120,1724254944800,-500.0,0.0001452,2]
[335474121,1724254944834,-500.0,0.0001452,2]
[335474122,1724254944869,-500.0,0.0001452,2]
[335474123,1724254944903,-559.17,0.0001452,2]
[335474124,1724254944938,-500.0,0.0001452,2]
[335474125,1724254944974,-500.0,0.0001452,2]
[335474126,1724254945009,-500.0,0.0001452,2]
[335474127,1724254945043,-500.0,0.0001452,2]
[335474128,1724254945080,-288.39,0.0001452,2]
[335474129,1724254945114,-500.0,0.0001452,2]
[335474130,1724254945149,-959.11,0.0001452,2]
[335474131,1724254945182,-500.0,0.0001452,2]
[335474132,1724254945217,-500.0,0.0001452,2]
[335474133,1724254945252,-852.2,0.0001452,2]
[335474134,1724254945285,-500.0,0.0001452,2]
[335474135,1724254945317,-500.0,0.0001452,2]
[335474136,1724254945353,-500.0,0.0001452,2]
[335474137,1724254945386,-500.0,0.0001452,2]
[335474138,1724254945425,-500.0,0.0001452,2]
[335474139,1724254945458,-500.0,0.0001452,2]
[335474140,1724254945492,-500.0,0.0001452,2]
[335474141,1724254945527,-500.0,0.0001452,2]
[335474142,1724254945561,-500.0,0.0001452,2]
[335474143,1724254945594,-500.0,0.0001452,2]
[335474144,1724254945627,-500.0,0.0001452,2]
[335474145,1724254945661,-397.98,0.0001452,2]
[335474146,1724254945696,-500.0,0.0001452,2]
[335474147,1724254945733,-1006.61,0.0001452,2]
[335474148,1724254945766,-500.0,0.0001452,2]
[335474149,1724254945800,-870.53,0.0001452,2]
[335474150,1724254945835,-1292.45,0.0001452,2]
[335474151,1724254945870,-706.57,0.0001452,2]
[335474152,1724254945908,-574.07,0.0001452,2]
[335474153,1724254945942,-1524.99,0.0001452,2]
[335474154,1724254945979,-500.0,0.0001452,2]
[335474155,1724254946014,-500.0,0.0001452,2]
[335474156,1724254946049,-500.0,0.0001452,2]
[335474157,1724254946083,-778.98,0.0001452,2]
[335474158,1724254946117,-1975.42,0.0001452,2]
[335474159,1724254946151,-500.0,0.0001452,2]
[335474160,1724254946185,-1715.19,0.0001452,2]
[335474161,1724254946219,-3694.59,0.0001452,2]
[335474162,1724254946252,-500.0,0.0001452,2]
[335474163,1724254946287,-500.0,0.0001452,2]
[335474164,1724254946321,-500.0,0.0001452,2]
[335474165,1724254946357,-500.0,0.0001452,2]
[335474166,1724254946392,-500.0,0.0001452,2]
[335474167,1724254946426,-500.0,0.0001452,2]
[335474168,1724254946461,-500.0,0.0001452,2]
[335474169,1724254946497,-500.0,0.0001452,2]
[335474170,1724254946532,-500.0,0.0001452,2]
[335474171,1724254946567,-613.01,0.0001452,2]
[335474172,1724254946600,-500.0,0.0001452,2]
[335474173,1724254946634,-809.6,0.0001452,2]
[335474174,1724254946668,-500.0,0.0001452,5]
[335474175,1724254946702,-557.57,0.0001452,2]
[335474176,1724254946736,-500.0,0.0001452,2]
[335474177,1724254946768,-500.0,0.0001452,2]
[335474178,1724254946802,-500.0,0.0001452,2]
[335474179,1724254946836,-3610.71,0.0001452,2]
[335474180,1724254946874,-583.65,0.0001452,2]
[335474181,1724254946907,-500.0,0.0001452,2]
[335474182,1724254946941,-509.65,0.0001452,2]
[335474183,1724254946975,-3836.74,0.0001452,2]
[335474184,1724254947009,-668.04,0.0001452,2]
[335474185,1724254947045,-500.0,0.0001452,2]
[335474186,1724254947078,-1151.5,0.0001452,2]
[335474187,1724254947112,-672.85,0.0001452,2]
[335474188,1724254947147,-3787.17,0.0001452,2]
[335474189,1724254947181,-500.0,0.0001452,2]
[335474190,1724254947215,-500.0,0.0001452,2]
[335474191,1724254947249,-2315.36,0.0001452,2]
[335474192,1724254947284,-500.0,0.0001452,2]
[335474193,1724254947320,-500.0,0.0001452,2]
[335474194,1724254947355,-500.0,0.0001452,2]
[335474195,1724254947390,-500.0,0.0001452,2]
[335474196,1724254947424,-500.0,0.0001452,2]
[335474197,1724254947458,-235.44552419,0.0001452,2]
[335474198,1724254947493,-500.0,0.0001452,2]
[335474199,1724254947528,-510.71,0.0001452,2]
[335474200,1724254947564,-500.0,0.0001452,2]
[335474201,1724254947599,-500.0,0.0001452,2]
[335474202,1724254947633,-500.0,0.0001452,2]
[335474203,1724254947670,-745.27,0.0001452,2]
[335474204,1724254947706,-500.0,0.0001452,2]
[335474205,1724254947743,-500.0,0.0001452,2]
[335474206,1724254947782,-5538.52,0.0001452,2]
[335474207,1724254947823,-500.0,0.0001452,2]
[335474208,1724254947867,-2176.39,0.0001452,2]
[335474209,1724254947910,-1375.55,0.0001452,2]
[335474210,1724254947950,-500.0,0.0001452,2]
[335474211,1724254947989,-1702.55,0.0001452,2]
[335474212,1724254948027,-4644.99,0.0001452,2]
[335474213,1724254948065,-4230.72,0.0001452,2]
[335474214,1724254948104,-500.0,0.0001452,2]
[335474215,1724254948142,-1632.37,0.0001452,2]
[335474216,1724254948184,-500.0,0.0001452,2]
[335474217,1724254948221,-4036.38,0.0001452,2]
[335474218,1724254948258,-2242.27,0.0001452,2]
[335474219,1724254948293,-1015.93,0.0001452,2]
[335474220,1724254948328,-2180.32,0.0001452,2]
[335474221,1724254948362,-500.0,0.0001452,2]
[335474223,1724254948399,-5791.35,0.0001452,2]
[335474224,1724254948434,-2059.56,0.0001452,2]
[335474225,1724254948468,-500.0,0.0001452,2]
[335474226,1724254948502,-9254.59,0.0001452,2]
[335474227,1724254948538,-890.21,0.0001452,2]
[335474228,1724254948575,-21541.67,0.0001452,2]
[335474229,1724254948612,-500.0,0.0001452,2]
[335474230,1724254948650,-500.0,0.0001452,2]
[335474231,1724254948846,-500.0,0.0001452,2]
[335474232,1724254948883,-500.0,0.0001452,2]
[335474233,1724254948926,-500.0,0.0001452,2]
[335474234,1724254948967,-3591.18,0.0001452,2]
[335474235,1724254949004,-1106.82,0.0001452,2]
[335474236,1724254949038,-2092.17,0.0001452,2]
[335474237,1724254949071,-500.0,0.0001452,2]
[335474238,1724254949106,-311.21992283,0.0001452,2]
[335474239,1724254949142,-6999.0,0.0001452,2]
[335474240,1724254949184,-1074.52,0.0001452,2]
[335474241,1724254949218,-4089.14,0.0001452,2]
[335474242,1724254949251,-2936.17,0.0001452,2]
[335474243,1724254949286,-500.0,0.0001452,2]
[335474244,1724254949323,-698.68,0.0001452,2]
[335474245,1724254949356,-14784.28,0.0001452,2]
[335474246,1724254949391,-824.86,0.0001452,2]
[335474247,1724254949431,-4347.61,0.0001452,2]
[335474248,1724254949465,-5388.5,0.0001452,2]
[335474249,1724254949500,-2443.47,0.0001452,2]
[335474250,1724254949538,-500.0,0.0001452,2]
[335474251,1724254949571,-1468.91,0.0001452,2]
[335474252,1724254949606,-378.3,0.0001452,2]
[335474253,1724254949641,-4810.05,0.0001452,2]
[335474254,1724254949677,-7797.79,0.0001452,2]
[335474255,1724254949711,-1114.1,0.0001452,2]
[335474256,1724254949747,-2713.58,0.0001452,2]
[335474257,1724254949782,-892.27,0.0001452,2]
[335474258,1724254949816,-3097.29,0.0001452,2]
[335474259,1724254949851,-946.16,0.0001452,2]
[335474260,1724254949887,-2967.68,0.0001452,2]
[335474261,1724254949923,-1388.31,0.0001452,2]
[335474262,1724254949960,-5106.82,0.0001452,2]
[335474263,1724254949994,-4779.42,0.0001452,2]
[335474264,1724254950029,-712.97,0.0001452,2]
[335474265,1724254950061,-661.4,0.0001452,2]
[335474266,1724254950097,-12513.3,0.0001452,2]
[335474267,1724254950132,-2791.0,0.0001452,2]
[335474268,1724254950173,-853.17,0.0001452,2]
[335474269,1724254950210,-5693.7,0.0001452,2]
[335474270,1724254950246,-4218.56,0.0001452,2]
[335474271,1724254950282,-609.64,0.0001452,2]
[335474272,1724254950316,-1985.89,0.0001452,2]
[335474273,1724254950348,-1032.67,0.0001452,2]
[335474274,1724254950381,-3245.71,0.0001452,2]
[335474275,1724254950421,-500.0,0.0001452,2]
[335474276,1724254950453,-1881.69,0.0001452,2]
[335474277,1724254950486,-18618.85,0.0001452,2]
[335474278,1724254950519,-500.0,0.0001452,2]
[335474279,1724254950554,-2253.96,0.0001452,2]
[335474280,1724254950587,-824.71,0.0001452,2]
[335474281,1724254950618,-1553.48,0.0001452,2]
[335474282,1724254950654,-610.33539125,0.0001452,2]
[335474283,1724254950688,-500.0,0.0001452,2]
[335474284,1724254950722,-500.0,0.0001452,2]
[335474285,1724254950757,-1186.87,0.0001452,2]
[335474286,1724254950792,-500.0,0.0001452,2]
[335474287,1724254950826,-2896.04,0.0001452,2]
[335474288,1724254950858,-1157.71,0.0001452,2]
[335474289,1724254950892,-1998.84,0.0001452,2]
[335474290,1724254950927,-414.82408258,0.0001452,2]
[335474344,1724255431545,-169.70027926,0.00010859,2]
[335474345,1724255431556,-150.0,0.00010928,2]
[335474346,1724255431565,-163.4,0.00010959,2]
[335474347,1724255431574,-1932.89972074,0.000129,2]
[335474348,1724255431586,-2308.27127926,0.000129,2]
[335474349,1724255431595,-250.0,0.00013063,2]
[335474350,1724255431605,-921.35,0.00013176,2]
[335474351,1724255431614,-610.065,0.0001337,2]
[335474352,1724255431624,-250.0,0.00013436,2]
[335474353,1724255431633,-354.26729609,0.00013462,2]
[335474354,1724255431644,-395.74270391,0.00013462,2]
[335474355,1724255431654,-32.72140788,0.00013598,2]
[335474356,1724255431680,-1284.35585131,0.00013598,2]
[335474357,1724255431691,-876.72999162,0.00013598,2]
[335474358,1724255431702,-1871.99425819,0.00013598,2]
[335474359,1724255431711,-150.0,0.00013697,2]
[335474360,1724255431720,-172.56230236,0.00013697,2]
[335474361,1724255431732,-127.43769764,0.00013697,2]
[335474362,1724255431741,-300.0,0.00013697,2]
[335474363,1724255431750,-500.0,0.00013698,2]
[335474364,1724255431759,-500.0,0.00013698,2]
[335474365,1724255431768,-500.0,0.00013698,2]
[335474366,1724255431777,-72.56230236,0.00013698,2]
[335474367,1724255431789,-766.27769764,0.00013698,2]
[335474368,1724255431799,-1077.04,0.00013698,2]
[335474369,1724255431809,-500.0,0.00013698,2]
[335474370,1724255431819,-588.81,0.00013698,2]
[335474372,1724255431828,-500.0,0.00013698,2]
[335474374,1724255431837,-725.44,0.00013698,2]
[335474375,1724255431847,-500.0,0.00013698,2]
[335474376,1724255431856,-1270.82,0.00013698,2]
[335474377,1724255431865,-500.0,0.00013698,2]
[335474378,1724255431874,-649.15,0.00013698,2]
[335474379,1724255431883,-500.0,0.00013698,2]
[335474380,1724255431892,-1429.33,0.00013698,2]
[335474381,1724255431902,-500.0,0.00013698,2]
[335474382,1724255431911,-1646.18,0.00013698,2]
[335474383,1724255431922,-3078.83,0.00013698,2]
[335474384,1724255431935,-500.0,0.00013698,2]
[335474385,1724255431944,-500.0,0.00013698,2]
[335474386,1724255431953,-500.0,0.00013698,2]
[335474387,1724255431963,-500.0,0.00013698,2]
[335474389,1724255431974,-500.0,0.00013698,2]
[335474391,1724255431983,-500.0,0.00013698,2]
[335474393,1724255431993,-500.0,0.00013698,2]
[335474396,1724255432003,-500.0,0.00013698,2]
[335474397,1724255432012,-500.0,0.00013698,2]
[335474398,1724255432023,-3008.92,0.00013698,2]
[335474399,1724255432033,-500.0,0.00013698,2]
[335474400,1724255432042,-500.0,0.00013698,2]
[335474401,1724255432052,-500.0,0.00013698,2]
[335474402,1724255432061,-500.0,0.00013698,2]
[335474403,1724255432071,-3197.28,0.00013698,2]
[335474404,1724255432080,-500.0,0.00013698,2]
[335474405,1724255432090,-500.0,0.00013698,2]
[335474406,1724255432100,-500.0,0.00013698,2]
[335474407,1724255432109,-500.0,0.00013698,2]
[335474408,1724255432118,-500.0,0.00013698,2]
[335474409,1724255432127,-556.7,0.00013698,2]
[335474410,1724255432137,-560.7,0.00013698,2]
[335474411,1724255432146,-959.58,0.00013698,2]
[335474412,1724255432155,-500.0,0.00013698,2]
[335474413,1724255432164,-306.53829178,0.00013698,2]
[335474414,1724255432174,-500.0,0.00013698,2]
[335474415,1724255432183,-3870.83,0.00013698,2]
[335474416,1724255432192,-3155.97,0.00013698,2]
[335474417,1724255432201,-1868.56,0.00013698,2]
[335474418,1724255432210,-1929.46,0.00013698,2]
[335474419,1724255432219,-799.26,0.00013698,2]
[335474420,1724255432227,-500.0,0.00013698,2]
[335474421,1724255432236,-1816.93,0.00013698,2]
[335474422,1724255432246,-500.0,0.00013698,2]
[335474423,1724255432255,-7712.16,0.00013698,2]
[335474424,1724255432265,-500.0,0.00013698,2]
[335474425,1724255432274,-500.0,0.00013698,2]
[335474426,1724255432283,-710.17,0.00013698,2]
[335474427,1724255432293,-500.0,0.00013698,2]
[335474428,1724255432304,-2992.65,0.00013698,2]
[335474429,1724255432313,-5832.5,0.00013698,2]
[335474430,1724255432322,-500.0,0.00013698,2]
[335474431,1724255432331,-500.0,0.00013698,2]
[335474432,1724255432340,-12320.23,0.00013698,2]
[335474433,1724255432349,-500.0,0.00013698,2]
[335474434,1724255432359,-500.0,0.00013698,2]
[335474435,1724255432368,-4008.37,0.00013698,2]
[335474436,1724255432377,-3982.85,0.00013698,2]
[335474437,1724255432386,-2446.81,0.00013698,2]
[335474438,1724255432395,-463.18701262,0.00013698,2]
[335474439,1724255432405,-500.0,0.00013698,2]
[335474440,1724255432414,-500.0,0.00013698,2]
[335474441,1724255432422,-860.56,0.00013698,2]
[335474442,1724255432431,-385.47205069,0.00013698,2]
[335474443,1724255432440,-342.48761112,0.00013698,2]
[335474444,1724255432450,-500.0,0.00013698,2]
[335474445,1724255432459,-500.0,0.00013698,2]
[335474446,1724255432468,-500.0,0.00013698,2]
[335474447,1724255432478,-696.99,0.00013698,2]
[335474448,1724255432487,-4255.68,0.00013698,2]
[335474449,1724255432496,-989.06,0.00013698,2]
[335474450,1724255432506,-500.0,0.00013698,2]
[335474451,1724255432516,-1962.52,0.00013698,2]
[335474452,1724255432527,-500.0,0.00013698,2]
[335474453,1724255432537,-5857.82,0.00013698,2]
[335474454,1724255432546,-500.0,0.00013698,2]
[335474455,1724255432558,-895.44,0.00013698,2]
[335474456,1724255432568,-361.84111737,0.00013698,2]
[335474457,1724255432577,-2570.62,0.00013698,2]
[335474458,1724255432586,-500.0,0.00013698,2]
[335474459,1724255432596,-582.23,0.00013698,2]
[335474460,1724255432604,-500.0,0.00013698,2]
[335474461,1724255432614,-741.84,0.00013698,2]
[335474462,1724255432623,-500.0,0.00013698,2]
[335474463,1724255432633,-11210.43,0.00013698,2]
[335474464,1724255432642,-500.0,0.00013698,2]
[335474465,1724255432652,-743.56,0.00013698,2]
[335474466,1724255432662,-500.0,0.00013698,2]
[335474467,1724255432671,-500.0,0.00013698,2]
[335474468,1724255432680,-29621.6,0.00013698,2]
[335474469,1724255432689,-594.14,0.00013698,2]
[335474470,1724255432699,-1418.79,0.00013698,2]
[335474471,1724255432707,-1224.09,0.00013698,2]
[335474472,1724255432717,-1568.08,0.00013698,2]
[335474473,1724255432726,-3363.65,0.00013698,2]
[335474474,1724255432735,-1156.92,0.00013698,2]
[335474475,1724255432744,-664.58,0.00013698,2]
[335474476,1724255432754,-788.47,0.00013698,2]
[335474477,1724255432764,-4826.12,0.00013698,2]
[335474478,1724255432774,-2325.83,0.00013698,2]
[335474479,1724255432782,-500.0,0.00013698,2]
[335474480,1724255432792,-3515.47,0.00013698,2]
[335474481,1724255432803,-17951.39,0.00013698,2]
[335474482,1724255432812,-2704.75,0.00013698,2]
[335474483,1724255432821,-500.0,0.00013698,2]
[335474484,1724255432830,-1743.48,0.00013698,2]
[335474485,1724255432839,-1878.3,0.00013698,2]
[335474486,1724255432848,-3407.61,0.00013698,2]
[335474487,1724255432857,-500.0,0.00013698,2]
[335474488,1724255432868,-2006.58,0.00013698,2]
[335474489,1724255432878,-500.0,0.00013698,2]
[335474490,1724255432887,-4490.41,0.00013698,2]
[335474491,1724255432897,-525.66,0.00013698,2]
[335474492,1724255432906,-1665.7,0.00013698,2]
[335474493,1724255432915,-1185.7,0.00013698,2]
[335474494,1724255432927,-500.0,0.00013698,2]
[335474495,1724255432937,-2261.31,0.00013698,2]
[335474496,1724255432946,-526.27,0.00013698,2]
[335474497,1724255432955,-9278.00363705,0.0001387,2]
[335474498,1724255432964,-4723.93,0.00013872,2]
[335474499,1724255432974,-499.99,0.00013872,2]
[335474500,1724255432983,-306.31409132,0.00013872,2]
[335474501,1724255432991,-160.46,0.00013874,2]
[335474502,1724255433001,-503.0,0.00013874,2]
[335474503,1724255433011,-193.96,0.00013879,2]
[335474504,1724255433021,-5298.3627,0.000139,2]
[335474505,1724255433030,-687.39,0.00013938,2]
[335474506,1724255433040,-928.42,0.00013938,2]
[335474507,1724255433049,-551.16,0.00013938,2]
[335474508,1724255433060,-1654.91,0.00013938,2]
[335474509,1724255433070,-785.08,0.00013938,2]
[335474510,1724255433080,-982.24,0.00013938,2]
[335474511,1724255433089,-500.0,0.00013938,2]
[335474512,1724255433099,-500.0,0.00013938,2]
[335474513,1724255433108,-514.63,0.00013938,2]
[335474514,1724255433117,-500.0,0.00013938,2]
[335474515,1724255433126,-1923.0,0.00013939,2]
[335474516,1724255433136,-1544.0,0.00013939,2]
[335474517,1724255433146,-623.0,0.00013939,2]
[335474518,1724255433155,-1258.0,0.00013939,2]
[335474519,1724255433164,-1138.858,0.00013939,2]
[335474520,1724255433173,-150.0,0.00013939,2]
[335474521,1724255433183,-447.0,0.00013939,2]
[335474522,1724255433193,-810.0,0.00013939,2]
[335474523,1724255433203,-556.0,0.00013939,2]
[335474524,1724255433212,-150.0,0.00013939,2]
[335474525,1724255433221,-1896.0,0.00013939,2]
[335474526,1724255433231,-551.0,0.00013939,2]
[335474527,1724255433240,-248.0,0.00013939,2]
[335474528,1724255433250,-3319.0,0.00013939,2]
[335474529,1724255433260,-1166.0,0.00013939,2]
[335474530,1724255433270,-764.0,0.00013939,2]
[335474531,1724255433279,-3737.052,0.00013939,2]
[335474532,1724255433419,-289.0,0.00013939,2]
[335474533,1724255433430,-5847.0,0.00013939,2]
[335474534,1724255433440,-1673.0,0.00013939,2]
[335474535,1724255433450,-1205.0,0.00013939,2]
[335474536,1724255433461,-21777.0,0.00013939,2]
[335474537,1724255433471,-500.0,0.00013948,2]
[335474538,1724255433482,-500.0,0.00013971,2]
[335474539,1724255433492,-500.0,0.00013971,2]
[335474540,1724255433502,-500.0,0.00013971,2]
[335474541,1724255433512,-500.0,0.00013971,2]
[335474542,1724255433521,-500.0,0.00013971,2]
[335474543,1724255433532,-500.0,0.00013971,2]
[335474544,1724255433542,-500.0,0.00013971,2]
[335474545,1724255433553,-500.0,0.00013971,2]
[335474546,1724255433563,-6394.28571811,0.00013971,2]
[335474547,1724255433573,-500.0,0.00013971,2]
[335474548,1724255433583,-2388.16916699,0.00013971,2]
[335474549,1724255433592,-500.0,0.00013971,2]
[335474550,1724255433602,-674.67,0.00013971,2]
[335474551,1724255433612,-3792.8884818,0.00013971,2]
[335474552,1724255433621,-1741.05235021,0.00013971,2]
[335474553,1724255433631,-500.0,0.00013972,2]
[335474554,1724255433640,-500.0,0.00013972,2]
[335474555,1724255433649,-500.0,0.00013972,2]
[335474556,1724255433659,-838.84,0.00013972,2]
[335474557,1724255433668,-1077.04,0.00013972,2]
[335474558,1724255433678,-500.0,0.00013972,2]
[335474559,1724255433688,-588.81,0.00013972,2]
[335474560,1724255433698,-500.0,0.00013972,2]
[335474561,1724255433708,-725.44,0.00013972,2]
[335474562,1724255433717,-500.0,0.00013972,2]
[335474563,1724255433726,-1270.82,0.00013972,2]
[335474564,1724255433736,-500.0,0.00013972,2]
[335474565,1724255433746,-649.15,0.00013972,2]
[335474566,1724255433756,-500.0,0.00013972,2]
[335474567,1724255433766,-1429.33,0.00013972,2]
[335474568,1724255433776,-500.0,0.00013972,2]
[335474569,1724255433786,-1646.18,0.00013972,2]
[335474570,1724255433796,-3078.83,0.00013972,2]
[335474571,1724255433807,-500.0,0.00013972,2]
[335474572,1724255433825,-500.0,0.00013972,2]
[335474573,1724255433836,-500.0,0.00013972,2]
[335474574,1724255433846,-500.0,0.00013972,2]
[335474575,1724255433855,-500.0,0.00013972,2]
[335474576,1724255433865,-500.0,0.00013972,2]
[335474577,1724255433876,-500.0,0.00013972,2]
[335474578,1724255433886,-500.0,0.00013972,2]
[335474579,1724255433896,-500.0,0.00013972,2]
[335474580,1724255433905,-3008.92,0.00013972,2]
[335474581,1724255433916,-500.0,0.00013972,2]
[335474582,1724255433929,-500.0,0.00013972,2]
[335474583,1724255433939,-500.0,0.00013972,2]
[335474584,1724255433949,-500.0,0.00013972,2]
[335474585,1724255433960,-3197.28,0.00013972,2]
[335474586,1724255433970,-500.0,0.00013972,2]
[335474587,1724255433979,-500.0,0.00013972,2]
[335474588,1724255433990,-500.0,0.00013972,2]
[335474589,1724255434000,-500.0,0.00013972,2]
[335474590,1724255434012,-500.0,0.00013972,2]
[335474591,1724255434022,-556.7,0.00013972,2]
[335474592,1724255434032,-560.7,0.00013972,2]
[335474593,1724255434043,-959.58,0.00013972,2]
[335474594,1724255434052,-500.0,0.00013972,2]
[335474595,1724255434063,-500.0,0.00013972,2]
[335474596,1724255434073,-3870.83,0.00013972,2]
[335474597,1724255434083,-3155.97,0.00013972,2]
[335474598,1724255434092,-1868.56,0.00013972,2]
[335474599,1724255434102,-1929.46,0.00013972,2]
[335474600,1724255434111,-799.26,0.00013972,2]
[335474601,1724255434122,-500.0,0.00013972,2]
[335474602,1724255434132,-1816.93,0.00013972,2]
[335474603,1724255434142,-500.0,0.00013972,2]
[335474604,1724255434152,-7712.16,0.00013972,2]
[335474605,1724255434162,-500.0,0.00013972,2]
[335474606,1724255434172,-500.0,0.00013972,2]
[335474607,1724255434183,-710.17,0.00013972,2]
[335474608,1724255434194,-500.0,0.00013972,2]
[335474609,1724255434204,-2992.65,0.00013972,2]
[335474610,1724255434214,-5832.5,0.00013972,2]
[335474611,1724255434224,-500.0,0.00013972,2]
[335474612,1724255434234,-500.0,0.00013972,2]
[335474613,1724255434244,-12320.23,0.00013972,2]
[335474614,1724255434253,-500.0,0.00013972,2]
[335474615,1724255434263,-506.12776867,0.00013972,2]
[335474616,1724255434273,-4008.37,0.00013972,2]
[335474617,1724255434283,-3982.85,0.00013972,2]
[335474618,1724255434293,-2446.81,0.00013972,2]
[335474619,1724255434307,-500.0,0.00013972,2]
[335474620,1724255434317,-482.96366525,0.00013972,2]
[335474621,1724255434326,-860.56,0.00013972,2]
[335474622,1724255434336,-500.0,0.00013972,2]
[335474623,1724255434346,-500.0,0.00013972,2]
[335474624,1724255434355,-500.0,0.00013972,2]
[335474625,1724255434365,-696.99,0.00013972,2]
[335474626,1724255434374,-4255.68,0.00013972,2]
[335474627,1724255434383,-989.06,0.00013972,2]
[335474628,1724255434392,-500.0,0.00013972,2]
[335474629,1724255434402,-1962.52,0.00013972,2]
[335474630,1724255434411,-500.0,0.00013972,2]
[335474631,1724255434422,-5857.82,0.00013972,2]
[335474632,1724255434431,-500.0,0.00013972,2]
[335474633,1724255434440,-895.44,0.00013972,2]
[335474634,1724255434449,-2570.62,0.00013972,2]
[335474635,1724255434458,-500.0,0.00013972,2]
[335474636,1724255434468,-582.23,0.00013972,2]
[335474637,1724255434477,-500.0,0.00013972,2]
[335474638,1724255434487,-741.84,0.00013972,2]
[335474639,1724255434496,-500.0,0.00013972,2]
[335474640,1724255434504,-11210.43,0.00013972,2]
[335474641,1724255434513,-500.0,0.00013972,2]
[335474642,1724255434523,-500.0,0.00013972,2]
[335474643,1724255434532,-743.56,0.00013972,2]
[335474644,1724255434541,-500.0,0.00013972,2]
[335474645,1724255434550,-29621.6,0.00013972,2]
[335474646,1724255434561,-594.14,0.00013972,2]
[335474647,1724255434571,-1418.79,0.00013972,2]
[335474648,1724255434580,-1224.09,0.00013972,2]
[335474649,1724255434589,-1568.08,0.00013972,2]
[335474650,1724255434598,-3363.65,0.00013972,2]
[335474651,1724255434608,-1156.92,0.00013972,2]
[335474652,1724255434620,-664.58,0.00013972,2]
[335474653,1724255434634,-788.47,0.00013972,2]
[335474654,1724255434648,-4826.12,0.00013972,2]
[335474655,1724255434661,-2325.83,0.00013972,2]
[335474656,1724255434673,-500.0,0.00013972,2]
[335474657,1724255434687,-3515.47,0.00013972,2]
[335474658,1724255434704,-17951.39,0.00013972,2]
[335474659,1724255434717,-2704.75,0.00013972,2]
[335474660,1724255434732,-500.0,0.00013972,2]
[335474661,1724255434745,-1743.48,0.00013972,2]
[335474662,1724255434760,-1878.3,0.00013972,2]
[335474663,1724255434773,-3407.61,0.00013972,2]
[335474664,1724255434786,-500.0,0.00013972,2]
[335474665,1724255434798,-2006.58,0.00013972,2]
[335474666,1724255434813,-500.0,0.00013972,2]
[335474667,1724255434828,-4490.41,0.00013972,2]
[335474668,1724255434841,-525.66,0.00013972,2]
[335474669,1724255434854,-1665.7,0.00013972,2]
[335474670,1724255434865,-1185.7,0.00013972,2]
[335474671,1724255434877,-500.0,0.00013972,2]
[335474672,1724255434890,-2261.31,0.00013972,2]
[335474673,1724255434903,-526.27,0.00013972,2]
[335474674,1724255434917,-259.88,0.00013991,2]
[335474675,1724255434932,-4065.80150893,0.00014116,2]
[335474676,1724255434946,-153.0,0.00014211,2]
[335474677,1724255434960,-687.39,0.00014212,2]
[335474678,1724255434972,-928.42,0.00014212,2]
[335474679,1724255434982,-551.16,0.00014212,2]